[Event "Ramat Gan Masters-A Winter 2023"]
[Site "Ramat Gan/ISR"]
[Date "2023.01.17"]
[Round "1.9"]
[White "Gurevich, Neria"]
[Black "Gavriely, Or"]
[Result "1/2-1/2"]
[Annotator "TA"]
[ECO "D46"]
[WhiteElo "1543"]
[BlackElo "1991"]
[PlyCount "105"]
[EventDate "2023.01.17"]
[EventType "swiss"]
[SourceTitle "playchess.com"]
[Source "ChessBase"]
[SourceQuality "1"]
[TimeControl "5400+30"]

{[%evp 22,105,73,69,90,87,151,75,255,270,292,266,280,188,322,333,325,38,66,0,0,-7,150,150,153,146,131,64,72,77,96,60,56,59,77,78,91,0,0,0,0,0,0,0,0,0,0,0,0,0,0,0,0,0,0,0,0,0,0,0,0,-8,0,0,0,0,0,0,0,0,0,0,0,0,0,0,8,8,8,0,8,8,8,8,8,8]} 1. d4 {[%emt 0:00:02]} Nf6 {[%emt 0:00:00]} 2. c4 {[%emt 1:31:28]} e6 3. Nf3 {[%emt 0:00:30]} d5 4. Nc3 {[%emt 0:00:00]} c6 {[%emt 0:00:05]} 5. e3 {[%emt 0:00:00]} Nbd7 {[%emt 0:00:01]} 6. Bd3 {[%emt 0:00:00]} Bd6 {[%emt 0:00:22]} 7. O-O {[%emt 0:00:00]} O-O {[%emt 0:00:01]} 8. e4 {[%emt 0:00:00]} dxe4 {[%emt 0:03:46]} 9. Nxe4 {[%emt 0:00:00]} Nxe4 {[%emt 0:00:59]} 10. Bxe4 {[%emt 0:00:00]} Nf6 {[%emt 0:19:58]} 11. Bc2 {[%emt 0:00:00]} b6 {[%emt 0:07:49] 11...c5 is setting a new trend.} 12. Bg5 {[%emt 0:00:00]} h6 {[%emt 0:02:55] D46: Semi-Slav: 5 e3 Nbd7 6 Bd3, Black avoids the Meran.} 13. Bh4 {[%emt 0:00:00]} Bb7 {[%emt 0:06:18] [#]} (13... c5 $142) 14. Qd3 {[%emt 0:00:00]} (14. Ne5 $142 $1) 14... g6 $2 {[%emt 0:01:02]} (14... g5 $16 15. Bg3 c5) 15. Rfe1 {[%emt 0:00:00][%cal Oe1e6] Rxe6! is the strong threat.} Re8 {[%emt 0:06:17]} 16. Ne5 {[%emt 0:00:00]} Bxe5 {[%emt 0:03:45] [#]} 17. Rxe5 $146 {[%emt 0:00:00] Hoping for Rae1.} (17. dxe5 Qxd3 18. Bxd3 Nh5 $14) ({Predecessor:} 17. dxe5 Qxd3 18. Bxd3 Nd7 19. Rad1 Nf8 20. Be4 g5 21. Bg3 Re7 22. Rd6 c5 23. Bc2 {½-½ De Oliveira,G (1764)-Zimmermann,K (1918) Catarinense-ch 2016 (5)}) 17... c5 {[%emt 0:07:07]} (17... b5 $142 18. c5 (18. cxb5 Rc8 $16) 18... a5) 18. d5 $18 {[%emt 0:00:00] Black must now prevent Rae1.} ({Less strong is} 18. dxc5 g5 19. Bg3 Qxd3 20. Bxd3 Nd7 $14) 18... g5 {[%emt 0:03:34]} (18... exd5 $2 19. Rxe8+ Qxe8 20. Bxf6) 19. Qg3 {[%emt 0:00:00]} (19. Bg3 $18) 19... Nh5 $1 $14 {[%emt 0:04:00]} (19... exd5 $2 20. Bxg5 Nh5 21. Bxd8+ $18) 20. Qg4 {[%emt 0:00:00]} (20. Qh3 $1 $14 Qf6 21. Bg3 (21. Rae1 gxh4 22. Rxh5 exd5 $11) 21... exd5 22. Rxe8+ Rxe8 23. Qxh5 Qxb2 24. Qd1) 20... Ng7 $11 {[%emt 0:02:45]} (20... exd5 $2 21. Bxg5 hxg5 22. Rxg5+ (22. Rxe8+ Qxe8 23. Qxh5 Qe5 $14) 22... Kf8 23. Rg8+ (23. Rxh5 Qf6 $18) 23... Ke7 24. Re1+ Kd6 25. Rgxe8 Qxe8 26. Rxe8 Rxe8 27. h4 $18 (27. Qxh5 $2 Re1#)) 21. Bxg5 $40 {[%emt 0:00:00][%mdl 192] Double Attack. White mounts an attack.} f5 $2 {[%emt 0:09:44] Black is weak on the dark squares} (21... hxg5 $11 22. Rxg5 Qf6) 22. Bxd8 $16 {[%emt 0:00:00] Qg6 would be deadly.} fxg4 {[%emt 0:00:02]} 23. Bf6 {[%emt 0:00:00] And now Rae1 would win.} exd5 {[%emt 0:00:53] [#]} 24. cxd5 {[%emt 0:00:00] White is much more active.} ({White should play} 24. Be7 $1 $16) 24... Rxe5 $14 {[%emt 0:01:09]} 25. Bxe5 {[%emt 0:00:00] Threatens to win with Rd1. This pair of bishops is nice.} Bxd5 {[%emt 0:01:21]} 26. a3 {[%emt 0:00:00]} Re8 {[%emt 0:00:40]} 27. Bc3 {[%emt 0:00:00]} Be4 {[%emt 0:06:15]} 28. Bb3+ {[%emt 0:00:00]} Kh7 {[%emt 0:00:46]} 29. Bxg7 {[%emt 0:00:00]} ({Better is} 29. Ba4 $16 Rf8 30. Re1) 29... Kxg7 $16 {[%emt 0:00:10][%mdl 4096] Endgame KRB-KRB. The position is equal.} 30. Re1 {[%emt 0:00:00]} Bc6 {[%emt 0:01:55][%cal Re8e1] Against Ba4} 31. Rxe8 {[%emt 0:00:00]} Bxe8 $11 {[%emt 0:00:03] KB-KB} 32. Kf1 {[%emt 0:00:00]} Bc6 {[%emt 0:00:01]} 33. g3 {[%emt 0:00:00]} Kf6 {[%emt 0:01:33]} 34. Ke2 {[%emt 0:00:00]} Ke5 {[%emt 0:00:03]} 35. Ke3 {[%emt 0:00:00]} b5 {[%emt 0:01:29]} 36. Bd1 {[%emt 0:00:00]} Bd7 {[%emt 0:01:36]} 37. f3 {[%emt 0:00:00]} gxf3 {[%emt 0:00:09]} 38. Bxf3 {[%emt 0:00:00]} a5 {[%emt 0:00:00]} 39. h4 {[%emt 0:00:00]} Bf5 {[%emt 0:00:26]} 40. Bc6 {[%emt 0:00:00]} b4 {[%emt 0:00:04]} 41. axb4 {[%emt 0:00:00]} axb4 {[%emt 0:00:58]} 42. Bb5 {[%emt 0:00:00]} Be6 {[%emt 0:04:00]} 43. Be2 {[%emt 0:00:00]} c4 {[%emt 0:02:47]} 44. g4 {[%emt 0:00:00]} Bf7 {[%emt 0:01:26]} 45. g5 {[%emt 0:00:00]} hxg5 {[%emt 0:03:09]} 46. hxg5 {[%emt 0:00:00]} Kd5 {[%emt 0:00:11]} 47. Bf3+ {[%emt 0:00:00]} Kc5 {[%emt 0:00:31]} 48. Be4 {[%emt 0:00:00]} Kb5 {[%emt 0:01:11]} 49. Kd2 {[%emt 0:00:00]} Kc5 {[%emt 0:00:25]} 50. Bh7 {[%emt 0:00:00]} Kd4 {[%emt 0:01:01]} 51. g6 {[%emt 0:00:00]} c3+ {[%emt 0:00:11]} 52. bxc3+ {[%emt 0:00:00]} bxc3+ {[%emt 0:00:02]} 53. Kc1 {[%emt 0:00:00] Weighted Error Value: White=0.20 (precise) /Black=0.23 (precise)} 1/2-1/2

[Event "Ramat Gan Masters-A Winter 2023"]
[Site "Ramat Gan/ISR"]
[Date "2023.01.17"]
[Round "1.10"]
[White "Aroeta, Benny"]
[Black "Goz, Shachar"]
[Result "1/2-1/2"]
[Annotator "TA"]
[ECO "B22"]
[WhiteElo "1978"]
[BlackElo "1623"]
[PlyCount "103"]
[EventDate "2023.01.17"]
[EventType "swiss"]
[SourceTitle "playchess.com"]
[Source "ChessBase"]
[SourceQuality "1"]
[TimeControl "5400+30"]

{[%evp 10,103,22,0,22,0,31,23,27,7,21,9,18,19,20,21,27,14,81,96,94,60,65,57,60,32,47,0,0,-11,0,0,-6,-38,-45,-142,-148,-137,-144,-218,-212,-222,-203,-187,-125,-149,-107,-96,-106,-105,-105,-114,-116,-116,-112,-109,-106,-121,-110,-116,-70,-127,-77,-87,-70,-70,-70,-70,-70,-70,-66,-66,-66,-87,-87,-87,-87,-87,-66,-87,-87,-87,-87,-87,-8,-121,-121,-121,-121,-121,0,0,0,0,0,0]} 1. e4 {[%emt 0:00:05]} c5 {[%emt 0:00:03]} 2. c3 {[%emt 0:00:16]} e6 {[%emt 0:00:11]} 3. d4 {[%emt 0:00:43]} cxd4 {[%emt 0:00:05]} 4. cxd4 {[%emt 0:00:25]} d5 {[%emt 0:00:07]} 5. exd5 {[%emt 0:01:18]} exd5 {[%emt 0:00:06]} 6. Nf3 {[%emt 0:01:23]} Nc6 {[%emt 0:00:59] B22: Sicilian: 2 c3.} 7. Bd3 {[%emt 0:04:43]} Bg4 {[%emt 0:00:41]} 8. O-O {[%emt 0:00:07] [#]} (8. h3 $5 {[%cal Rh3g4]} Bxf3 {[%mdl 64] Remove Defender} 9. Qxf3 $11) 8... Nge7 $146 {[%emt 0:03:12] White has an edge.} ({Predecessor:} 8... Bd6 9. h3 Bh5 10. Re1+ Nge7 11. Nc3 O-O 12. Bxh7+ Kh8 13. Bc2 a6 14. a3 Bc7 {1-0 Shahinyan,D (2452)-Mitrabha,G (2445) PNWCC Opening Bl French blitz 2020 (6)}) 9. Re1 {[%emt 0:01:06] Nc3 is the strong threat.} g6 $1 {[%emt 0:02:27]} 10. Bg5 {[%emt 0:12:22] [#] Strongly threatening Bf6.} Bg7 {[%emt 0:00:14] Prevents Bf6.} 11. Bxe7 {[%emt 0:02:36]} Nxe7 {[%emt 0:00:12]} 12. Qa4+ {[%emt 0:00:35]} Kf8 {[%emt 0:01:09] aiming for ...Bxf3.} 13. Ne5 {[%emt 0:01:26]} Bxe5 {[%emt 0:00:25]} (13... Be6 $11) 14. dxe5 $16 {[%emt 0:01:00]} Be6 {[%emt 0:00:06]} 15. Qf4 {[%emt 0:06:02] White has more active pieces. The black rooks are badly placed.} Nc6 {[%emt 0:01:15]} 16. Qh6+ {[%emt 0:01:17]} (16. Nc3 {is more complex.} Kg7 17. Rad1 Qe7 18. Qg3) 16... Kg8 {[%emt 0:00:12]} 17. Nd2 {[%emt 0:01:23]} (17. Na3 {keeps more tension.} Qb6 18. Nc2 Nb4 19. Nxb4 Qxb4 20. Re2) 17... Qf8 {[%emt 0:00:15]} 18. Qf4 {[%emt 0:00:55]} (18. Qg5 $14) 18... Qb4 $11 {[%emt 0:00:25]} 19. g3 {[%emt 0:25:33][%cal Bg2g3,Bg3f4][%mdl 32]} Qxf4 {[%emt 0:01:54]} 20. gxf4 {[%emt 0:00:04]} Nb4 {[%emt 0:00:12]} 21. Bb1 {[%emt 0:00:27]} Rc8 {[%emt 0:00:04][%cal Ba8c8,Bc8c4,Bc4f4][%mdl 32]} 22. Nf3 {[%emt 0:01:47] [#]} (22. Kg2 $15) 22... Rc4 $1 $17 {[%emt 0:00:15]} 23. a3 {[%emt 0:00:54] Black must now prevent f5.} Nc6 {[%emt 0:00:41]} 24. Ba2 {[%emt 0:06:47]} (24. f5 $17 gxf5 25. Rd1) 24... Rxf4 $19 {[%emt 0:00:29]} 25. Kg2 {[%emt 0:00:09]} Kg7 {[%emt 0:02:36]} 26. h3 {[%emt 0:00:44]} Re8 {[%emt 0:02:54]} (26... h6 $19 27. Rad1 Rd8) 27. Rad1 $17 {[%emt 0:02:10]} d4 {[%emt 0:01:31]} 28. Bxe6 {[%emt 0:01:15]} Rxe6 {[%emt 0:00:37]} 29. Kg3 {[%emt 0:00:41]} Rf5 {[%emt 0:00:08]} 30. Nxd4 {[%emt 0:00:12]} Nxd4 {[%emt 0:00:17]} (30... Rfxe5 $2 31. Nxe6+ fxe6 32. Rd7+ Kf6 33. Rxe5 Kxe5 34. Rxb7 $18) 31. Rxd4 {[%emt 0:00:07]} Rfxe5 {[%emt 0:00:12]} 32. Rxe5 {[%emt 0:00:18]} Rxe5 {[%emt 0:00:06][%mdl 4096] Endgame KR-KR} 33. Rd7 {[%emt 0:00:23]} Rb5 {[%emt 0:00:05]} 34. b4 {[%emt 0:00:37]} Kf6 {[%emt 0:00:14]} ({Black should try} 34... a5 $17 35. Rd4 axb4 36. axb4 Kf6) 35. Kf4 {[%emt 0:00:32]} (35. h4 $15) 35... Ke6 {[%emt 0:00:20]} (35... a5 $142 36. Rd4 axb4 37. axb4 Ke6) 36. Rc7 {[%emt 0:00:18]} h5 {[%emt 0:00:08]} 37. h4 {[%emt 0:01:02]} f6 {[%emt 0:00:14]} 38. Rg7 {[%emt 0:01:19]} a5 {[%emt 0:00:05]} 39. bxa5 {[%emt 0:02:32]} Rxa5 {[%emt 0:00:06]} 40. Rxb7 {[%emt 0:00:18]} Ra4+ {[%emt 0:00:06]} 41. Kg3 {[%emt 0:00:41]} Rxa3+ {[%emt 0:00:31]} 42. f3 {[%emt 0:00:07]} Ra5 {[%emt 0:00:12]} 43. Rb4 {[%emt 0:00:37]} Re5 {[%emt 0:01:06]} 44. Rb3 {[%emt 0:00:43]} Kf5 {[%emt 0:01:16]} 45. Rb4 {[%emt 0:00:51]} g5 {[%emt 0:00:16]} 46. Ra4 {[%emt 0:00:31]} Re3 {[%emt 0:02:26]} (46... Re6 $17 47. Ra8 Rc6) 47. Kf2 {[%emt 0:01:59]} (47. Ra5+ $11 Kg6 48. Kf2) 47... Rd3 {[%emt 0:01:11] Hoping for ...g4.} 48. hxg5 {[%emt 0:01:50]} fxg5 {[%emt 0:00:14]} 49. Ra5+ {[%emt 0:00:34]} Kg6 {[%emt 0:01:03]} (49... Kf4 $17 50. Ra4+ Ke5 51. f4+ gxf4) 50. Ra6+ $1 $11 {[%emt 0:00:14] The position is equal.} Kf7 {[%emt 0:00:14]} 51. Rh6 {[%emt 0:02:12]} h4 {[%emt 0:00:58]} 52. f4 $1 {[%emt 0:00:16] And White is the lucky defender.   Weighted Error Value: White=0.16 (very precise) /Black=0.15 (very precise)} 1/2-1/2

[Event "Ramat Gan Masters-A Winter 2023"]
[Site "Ramat Gan/ISR"]
[Date "2023.01.23"]
[Round "2.1"]
[White "Karp, Ilya"]
[Black "Hasson Shreger, Shalev"]
[Result "1-0"]
[Annotator "TA"]
[ECO "B31"]
[WhiteElo "2392"]
[BlackElo "1823"]
[PlyCount "91"]
[EventDate "2023.01.17"]
[EventType "swiss"]
[SourceTitle "playchess.com"]
[Source "ChessBase"]
[SourceQuality "1"]
[TimeControl "5400+30"]

{[%evp 15,90,12,13,14,23,16,17,18,37,32,28,25,47,42,31,6,113,19,78,86,127,127,144,142,153,110,136,107,113,46,117,89,98,0,93,87,133,132,138,72,169,179,185,143,145,99,179,122,269,260,340,336,325,236,520,522,809,790,2266,2011,29979,29981,29981,29982,29989,29990,29994,29992,29992,29993,29997,29988,29996,29997,29998,29999,29999]} 1. e4 {[%emt 0:00:02]} c5 {[%emt 0:00:01]} 2. Nf3 {[%emt 0:00:09]} Nc6 {[%emt 0:00:04]} 3. Bb5 {[%emt 0:00:08]} g6 {[%emt 0:00:02]} 4. O-O {[%emt 0:00:08]} Bg7 {[%emt 0:00:07]} 5. c3 {[%emt 0:01:08]} Nf6 {[%emt 0:00:12]} 6. Re1 {[%emt 0:00:08]} O-O {[%emt 0:02:33]} 7. h3 {[%emt 0:01:31]} a6 {[%emt 0:01:54]} 8. Bxc6 {[%emt 0:09:03]} bxc6 {[%emt 0:00:34]} 9. d4 {[%emt 0:02:46] B31: Sicilian: 2...Nc6 3 Bb5 g6.} d5 {[%emt 0:00:25]} 10. e5 {[%emt 0:02:41]} Ne4 {[%emt 0:00:15]} 11. Be3 {[%emt 0:01:10] [#] The position is equal.} c4 $146 {[%emt 1:29:53]} ({Predecessor:} 11... cxd4 12. cxd4 a5 13. Qc2 Qb6 14. Nc3 Nxc3 15. Qxc3 a4 16. Rac1 Rb8 17. Re2 Ba6 {½-½ Koentges,M (2390)-Kloster,J (2459) GER-ch48 final email 2018}) 12. b3 {[%emt 0:06:31]} cxb3 {[%emt 0:00:00]} 13. axb3 {[%emt 0:00:03]} Be6 {[%emt 0:00:00]} 14. Qc1 {[%emt 0:06:58]} f6 {[%emt 0:00:00]} 15. exf6 {[%emt 0:05:26]} Bxf6 {[%emt 0:00:00]} (15... exf6 $11 16. Bh6 Bxh6 17. Qxh6 Qd7) 16. Ng5 {[%emt 0:06:11]} (16. Nbd2 $16) 16... Nxg5 {[%emt 0:00:00]} (16... Bxg5 $11 {keeps the balance.} 17. Bxg5 Qd7) 17. Bxg5 $16 {[%emt 0:00:07]} Qd7 {[%emt 0:00:00][%cal Oe6h3]} 18. Qe3 {[%emt 0:03:11] Bh6 would be deadly.} Bf5 {[%emt 0:00:00]} 19. Nd2 {[%emt 0:00:28]} Qc7 {[%emt 0:00:00]} 20. Ra2 {[%emt 0:06:17]} a5 {[%emt 0:00:00]} 21. Nf3 {[%emt 0:08:50]} Be4 {[%emt 0:00:00]} 22. Nh2 {[%emt 0:00:06]} (22. Bh6 $16) 22... Bf5 {[%emt 0:00:00]} (22... Qb8 $1 $14) 23. Nf1 {[%emt 0:09:01]} Qb6 {[%emt 0:00:00] [#]} 24. Nd2 {[%emt 0:02:35]} (24. Ra3 $1 $16) 24... Ra7 {[%emt 0:00:00]} (24... Qc7 $1 $11 {remains equal.}) 25. Rea1 {[%emt 0:01:44]} Rfa8 {[%emt 0:00:00]} ({Better is} 25... Bxg5 26. Qxg5 c5) 26. g4 {[%emt 0:02:55]} Bc8 {[%emt 0:00:00]} 27. Qf4 {[%emt 0:01:34]} (27. Ra3 $142) 27... Bxg5 {[%emt 0:00:00]} (27... Bg7 $16 {might work better.}) 28. Qxg5 $18 {[%emt 0:00:01]} Qb8 {[%emt 0:00:00]} 29. Re1 {[%emt 0:09:31]} Qd6 {[%emt 0:00:00]} 30. Re5 {[%emt 0:00:04] White is much more active. The black rooks are badly placed.} (30. Qe3 $142) 30... a4 {[%emt 0:00:00]} (30... Rc7 $16) 31. bxa4 {[%emt 0:00:22]} (31. Rxa4 $18 Kf8 32. Qh4) 31... Kg7 {[%emt 0:00:00] Black cannot hold the game after this.} (31... e6 $16 32. a5 Qf8) 32. Nb3 {[%emt 0:00:55]} Rb8 {[%emt 0:00:00]} 33. Nc5 {[%emt 0:00:09]} Rb1+ {[%emt 0:00:00]} 34. Kg2 {[%emt 0:00:01] Hoping for Rae2.} h6 $2 {[%emt 0:00:00]} (34... Qf6 35. Qe3 Kf7) 35. Qe3 {[%emt 0:00:26]} g5 {[%emt 0:00:00]} 36. Re2 {[%emt 0:00:11]} Kf8 {[%emt 0:00:00]} 37. Qd3 {[%emt 0:02:38]} Rc1 {[%emt 0:00:00]} 38. Qh7 {[%emt 0:01:15] White mates.} Qf6 {[%emt 0:00:00]} 39. R2e3 {[%emt 0:00:26]} Rc7 {[%emt 0:00:00] [#]} 40. Re6 $1 {[%emt 0:02:16][%cal Be5e6,Be6g6,Bg6g7][%mdl 608] Skewer} Qf4 {[%emt 0:00:00]} (40... Rg1+ 41. Kxg1) 41. Qxh6+ {[%emt 0:00:13]} Ke8 {[%emt 0:00:00]} 42. Rg6 {[%emt 0:01:57]} e6 {[%emt 0:00:00]} 43. Qh8+ {[%emt 0:00:18]} Ke7 {[%emt 0:00:00]} 44. Rg7+ {[%emt 0:00:05]} Kd6 {[%emt 0:00:00]} 45. Qd8+ {[%emt 0:00:05]} Bd7 {[%emt 0:00:00]} 46. Rxe6# {[%emt 0:00:07] A cool game by Karp.   Weighted Error Value: White=0.17 (very precise) /Black=0.57} 1-0

[Event "Ramat Gan Masters-A Winter 2023"]
[Site "Ramat Gan/ISR"]
[Date "2023.01.23"]
[Round "2.2"]
[White "Soybert, Ori"]
[Black "Levitan, Ronit"]
[Result "0-1"]
[Annotator "TA"]
[ECO "C45"]
[WhiteElo "1736"]
[BlackElo "2064"]
[PlyCount "76"]
[EventDate "2023.01.17"]
[EventType "swiss"]
[SourceTitle "playchess.com"]
[Source "ChessBase"]
[SourceQuality "1"]
[TimeControl "5400+30"]

{[%evp 14,76,-4,-16,-16,-46,0,-1,12,9,84,79,66,16,26,15,49,1,36,0,6,6,8,10,8,7,35,29,39,42,37,24,31,39,32,37,70,0,0,0,0,0,0,0,0,-6,-6,-8,-8,-8,-8,-8,-8,-8,-8,-8,-8,-585,-566,-630,-632,-1741,-1284,-1985,-1787]} 1. e4 {[%emt 0:00:02]} e5 {[%emt 0:01:25]} 2. Nf3 {[%emt 0:00:11]} Nc6 {[%emt 0:00:05]} 3. d4 {[%emt 0:00:04]} exd4 {[%emt 0:00:11]} 4. Nxd4 {[%emt 0:00:02]} Nf6 {[%emt 0:00:18]} 5. Nxc6 {[%emt 0:00:07]} bxc6 {[%emt 0:00:07]} 6. e5 {[%emt 0:00:08]} Qe7 {[%emt 0:00:18]} 7. Qe2 {[%emt 0:00:06]} Nd5 {[%emt 0:00:04]} 8. h4 {[%emt 0:00:08]} (8. c4 $5 {[%cal Rc4d5]} Ba6 9. Nd2 $11) 8... a5 {[%emt 0:05:13] C45: Scotch Game.} 9. c4 {[%emt 0:00:13]} Ba6 {[%emt 0:03:10]} (9... Nb6 $1 $15) 10. g3 {[%emt 0:17:01]} Nb6 {[%emt 0:28:00] The position is equal.} 11. b3 {[%emt 0:03:05]} g6 {[%emt 0:20:31] [#]} (11... Qd8 $11) 12. Bg2 $146 {[%emt 0:32:14]} ({Predecessor:} 12. Ba3 c5 13. h5 Bg7 14. Bb2 Bb7 15. Rh2 O-O 16. a4 Rfe8 17. f4 d6 18. Nd2 dxe5 19. hxg6 fxg6 {0-1 Bugayev,V-Dev,S (2243) Titled Tuesday intern op 12th Oct blitz 2021 (1)}) 12... Bg7 {[%emt 0:00:33]} 13. Bb2 {[%emt 0:01:36]} (13. f4 $14) 13... O-O {[%emt 0:02:17]} 14. O-O {[%emt 0:01:48]} Rfe8 {[%emt 0:04:08][%cal Rg7e5]} 15. Re1 {[%emt 0:01:42]} (15. Qc2 $14 {was preferrable.}) 15... f6 {[%emt 0:03:18][%cal Rf6e5]} 16. e6 {[%emt 0:03:13]} Qxe6 {[%emt 0:03:40]} 17. Qxe6+ {[%emt 0:01:11]} Rxe6 {[%emt 0:00:08]} 18. Rxe6 {[%emt 0:01:52]} dxe6 {[%emt 0:00:05]} 19. Nd2 {[%emt 0:03:39]} Kf7 {[%emt 0:08:16]} (19... f5 $5 {[%cal Rg7b2]} 20. Bxg7 Kxg7 $11) 20. Bxc6 {[%emt 0:03:35]} Rb8 {[%emt 0:00:47] Black is weak on the light squares} 21. Bc3 {[%emt 0:03:19]} a4 {[%emt 0:00:41]} 22. Ne4 {[%emt 0:10:26]} Bb7 {[%emt 0:04:13]} 23. Bxb7 {[%emt 0:00:09]} Rxb7 {[%emt 0:00:01]} 24. Rd1 {[%emt 0:03:05]} Ra7 {[%emt 0:03:11]} 25. Nc5 {[%emt 0:03:27]} (25. Bd4 $14) 25... Bf8 {[%emt 0:04:04]} 26. Nd7 {[%emt 0:03:00]} Be7 {[%emt 0:00:17]} 27. Bd4 {[%emt 0:01:19]} axb3 {[%emt 0:01:30]} 28. axb3 {[%emt 0:00:21]} Rb7 {[%emt 0:00:13]} 29. Nc5 {[%emt 0:00:51]} Rb8 {[%emt 0:00:36] Threatens to win with ...Rd8.} 30. Na6 {[%emt 0:01:46][%csl LRb8,LRc7]} Rd8 {[%emt 0:03:54][%cal Oc7c5] Strongly threatening ...c5!} 31. Rd2 $1 {[%emt 0:01:40] [#]} (31. Nxc7 $2 {perishes.} e5 32. Nb5 exd4 33. Rxd4 Ra8 $19) 31... c5 $1 {[%emt 0:02:11][%cal Bc7c5,Bc5b4,Bb4b3][%mdl 32]} 32. Be3 {[%emt 0:00:30] aiming for Rxd8.} Rxd2 {[%emt 0:00:02]} 33. Bxd2 $11 {[%emt 0:00:04][%mdl 4096] Endgame KBN-KBN} Bd6 {[%emt 0:00:15]} 34. Be3 {[%emt 0:00:55]} Nd7 {[%emt 0:00:06]} 35. b4 $2 {[%emt 0:00:25][%mdl 8192] White does not recover from this.} cxb4 $19 {[%emt 0:00:13] White must now prevent ...b3. Black is clearly winning.} 36. c5 {[%emt 0:00:05] [#]} b3 $1 {[%emt 0:00:13]} 37. Bd4 {[%emt 0:02:16] [#]} (37. Bc1 Nxc5) 37... Nxc5 {[%emt 0:00:29][%mdl 512]} 38. Nb4 {[%emt 0:00:26] [#]} (38. Nxc5 Bxc5) 38... Be5 $1 {[%emt 0:00:51] Weighted Error Value: White=0.68/Black=0.32} 0-1